Workbook

Sheet Calculator (hidden)
A1: Daily Interest Calculation
A2: Formulae for the calculator =
A3: pmt = pv * i / (1 - (1 + i) -n )
A5: As an example, let us take a mortgage of £100,000 over 25 years at the rate of 4.75% pa compounding monthly.
B7: Calculator for deal | G7: Calculator for base | L7: Calculator for Stress
B9: Formulae requirements | C9: Date Entry Cells | G9: Formulae requirements | H9: Date Entry Cells | L9: Formulae requirements | M9: Date Entry Cells
B11: Present value (loan amount) | C11: =Affordability!C78 -> 0 | G11: Present value (loan amount) | H11: =C11 -> 0 | L11: Present value (loan amount) | M11: =H11 -> 0
B13: Interest rate | C13: =Affordability!H78 -> 0.00% | D13: i | E13: =C13/12 -> 0 | G13: Interest rate | H13: 7.84% | I13: i | J13: =H13/12 -> 0.006533333333 | L13: Interest rate | M13: =IF(OR(ISNUMBER(SEARCH("5 Year Fix",Affordability!R14)),Affordability!R12=Affordability!AB9),(Calculator!H13+0.01),(Calculator!H13+0.01))+IF(Affordability!R15="Yes",0.01,0) -> 8.84% | N13: i | O13: =M13/12 -> 0.007366666667
B15: Length of loan | C15: =Affordability!F78 -> 0 | D15: n | E15: =C15*12+Affordability!G78 -> 0 | G15: Length of loan | H15: =C15 -> 0 | I15: n | J15: =H15*12+Affordability!G78 -> 0 | L15: Length of loan | M15: =H15 -> 0 | N15: n | O15: =M15*12+Affordability!G78 -> 0
B17: Monthly Payment | D17: pmt | E17: =C29 ->  | G17: Monthly Payment | I17: pmt | J17: =H29 ->  | L17: Monthly Payment | N17: pmt | O17: =M29 -> 
B21: 1+ i = | C21: =1+E13 -> 1 | G21: 1+ i = | H21: =1+J13 -> 1.006533333 | L21: 1+ i = | M21: =1+O13 -> 1.007366667
B23: (1+ i)^-n = | C23: =C21^-E15 -> 1 | G23: (1+ i)^-n = | H23: =H21^-J15 -> 1 | L23: (1+ i)^-n = | M23: =M21^-O15 -> 1
B25: (1 - (1 + i)^-n ) | C25: =1-C23 -> 0 | G25: (1 - (1 + i)^-n ) | H25: =1-H23 -> 0 | L25: (1 - (1 + i)^-n ) | M25: =1-M23 -> 0
B27: pv * i | C27: =C11*E13 -> 0 | G27: pv * i | H27: =H11*J13 -> 0 | L27: pv * i | M27: =M11*O13 -> 0
B29: pv x i / (1 - (1 + i) -n ) | C29: =C27/C25 ->  | G29: pv x i / (1 - (1 + i) -n ) | H29: =H27/H25 ->  | L29: pv x i / (1 - (1 + i) -n ) | M29: =M27/M25 -> 
B32: CSR 2 MDINT Payment | C32: 570.12 | G32: CSR 2 MDINT Payment | H32: 570.12 | L32: CSR 2 MDINT Payment | M32: 570.12
B34: Difference | C34: =C29-C32 ->  | G34: Difference | H34: =H29-H32 ->  | L34: Difference | M34: =M29-M32 -> 
B38: Key | G38: Key | L38: Key
B39: Data Entry Cells | G39: Data Entry Cells | L39: Data Entry Cells
B40: Formula answer | G40: Formula answer | L40: Formula answer

Sheet Affordability
B3: Affordability Assessment
X7: Professional Products | Y7: Non-Pro Products | Z7: Professional Rates | AA7: Non-Pro Rates | AB7: Remortgage List
J8: Data entry fields | X8: Yes | Y8: No | Z8: YesRates | AA8: NoRates | AB8: Remortgage with Additional Funds
A9: Borrower(s): | X9: No | Y9: House Purchase - 2 Year Variable Discount | AA9: 2.73% | AB9: Remortgage with no additional funds (fees permitted)*
A10: Number of Dependants: | Y10: House Purchase - 2 Year Variable Discount (GREEN MORTGAGE) | AA10: 2.83% | AB10: No
A11: Is the loan Greater than 80% LTV? | Y11: House Purchase - 2 Year Variable Discount (NEW BUILD) | AA11: 2.93%
A12: Remortgage: | Y12: House Purchase - 2 Year Fixed Rate | AA12: 3.33%
A13: Professional Product: | B13: No | D13: =IF(B13=X8,Z8,AA8) -> NoRates | Y13: House Purchase - 5 Year Fixed Rate | AA13: 3.43%
A14: Product: | Y14: Remortgage - 2 Year Variable Discount | AA14: 4.09%
A15: Self Employed | D15: =IF(AND(B11="No",B15="No"),1,IF(AND(B11="No",B15="Yes"),2,IF(AND(B11="Yes",B15="No"),3,IF(AND(B11="Yes",B15="Yes"),4,"")))) ->  | Y15: Remortgage - 2 Year Fixed Rate | AA15: 4.18%
B16: =IF(OR(ISBLANK(R11),ISBLANK(R12),ISBLANK(R14),ISBLANK(R15)),"All questions above must be completed before continuing!","") -> All questions above must be completed before continuing! | Y16: Remortgage - 2 Year Variable Discount (Renovation Remortgage) | AA16: 4.38%
Y17: Remortgage - 2 Year Fixed Rate (Renovation Remortgage) | AA17: 5.69%
Y18: Self Build - 3 Year Variable Discount | AA18: 5.73%
Y19: NICO - 2 Year Variable Discount | AA19: 5.89%
A20: =IF(B13="Yes",("Professional Income Multiples = Single x 3.90 Joint x 3.90 Up to 95% LTV"),("")) ->  | AA20: 5.99%
A21: Income | B21: Gross Annual (1) | C21: Gross Annual (2) | D21: Gross Annual (1) | E21: Gross Annual (2) | F21: Combined Net Monthly | J21: =F21 -> Combined Net Monthly | L21: =J21 -> Combined Net Monthly | O21: =L21 -> Combined Net Monthly | AA21: 6.19%
D22: £ | F22: £ | J22: £ | L22: £ | O22: £ | AA22: 6.23%
AA23: 6.39%
AA24: 6.59%
A25: Employment | D25: =B25 -> £0.00 | E25: =C25 -> £0.00 | AA25: 6.74%
A26: Regular Overtime | D26: =B26 -> £0.00 | E26: =C26 -> £0.00
A27: Irregular Overtime | D27: =B27*0.5 -> £0.00 | E27: £0.00
A28: Bonus/Commission | D28: £0.00 | E28: £0.00
A29: Rental income | D29: =B29*0.6 -> £0.00 | E29: =C29*0.6 -> £0.00
A30: Other income | D30: £0.00 | E30: £0.00
A32: Total (A) | B32: =SUM(B25:B31) -> £0.00 | C32: =SUM(C25:C31) -> £0.00 | D32: =SUM(D25:D31) -> £0.00 | E32: =SUM(E25:E30) -> £0.00 | F32: ='Net (1) workings'!C21+'Net (2) workings'!C21 -> £0.00 | J32: =F32 -> £0.00 | L32: =J32 -> £0.00 | N32: £0.00 | O32: =L32 -> £0.00
N33: ='Income Multiple Calc'!E24 -> 
A34: Annual (net) | B34: ='Net (1) workings'!B21 -> £0.00 | C34: ='Net (2) workings'!B21 -> £0.00
A40: Expenditure | F40: Monthly
F41: £ | J41: £ | L41: £ | O41: £
A42: Committed expenditure
A43: Loans/HP
A44: Credit cards
A45: Childcare
A46: Alimony/maintenance
A47: Cost of repayment strategy (interest only)
A48: Cost of other mortgages not to be repaid
A49: Total Committed Expenditure | F49: =SUM(F43:F48) -> £0.00
A51: Basic essential expenditure
A52: Housekeeping/food/washing
A53: Gas/electricity/oil
A54: Rates & Ground Rent
A55: Telephone(s)
A56: Buildings insurance
A57: Service Charge
A58: Motoring - Petrol, insurance, tax
A59: Transport
A60: Basic quality of living costs
A61: Clothing
A62: Household goods (furniture, appliances)
A63: Personal goods (toiletries etc)
A64: Basic Recreation
A65: Life insurance/pension
A66: Other
A67: Total Basic Essential/Living Costs | F67: =SUM(F52:F66) -> £0.00
A69: Total (B) | F69: =F67+F49 -> £0.00 | J69: =F69 -> £0.00 | L69: =J69 -> £0.00 | O69: =L69 -> £0.00
A73: Disposable Income ( C )
A74: Total (A) - Total (B) = ( C) | J74: =SUM(J32-J69) -> £0.00 | L74: =SUM(L32-L69) -> £0.00 | O74: =SUM(O32-O69) -> £0.00
C77: Mortgage Amount (to include added fees) | F77: Duration (years) | G77: Duration (months) | H77: Initial Rate | J77: Initial Deal | L77: Base | O77: Stressed Base
A78: Mortgage Cost (D) | J78: =Calculator!C29 ->  | L78: =Calculator!H29 ->  | O78: =Calculator!M29 -> 
A79: (Capital + Interest) | C79: =IF(OR(ISBLANK(H78),ISBLANK(G78),ISBLANK(F78),ISBLANK(C78))," Please Complete Mortgage Details Above","") -> Please Complete Mortgage Details Above
A82: Net Disposable Income (E) | J82: =SUM(J74-J78) ->  | L82: =SUM(L74-L78) ->  | O82: =SUM(O74-O78) -> 
B83: =IFERROR(IF(O82<=0,"",IF(AND(D15<>2,O82<((B32/12*2%)+(C32/12*2%))),"Caution - Less than 2% Net Disposable Income Remaining!","")),"") -> 
A85: Outcome | B85: =IFERROR(IF(AND(D15=4,O82<((B32/12*2%)+(C32/12*2%))),"Do Not Proceed",IF(O82<=(N32),"Do Not Proceed",IF(AND(O82>=(N32),(O82<=(N32))),"Refer to Branch Manager / Head of Lending","Proceed subject to Income Multiple Criteria"))),"Please complete all required details to view outcome") -> Please complete all required details to view outcome | S85: Proceed to Application
A87: Income Multiple Assessment | B87: =IFERROR(SUM(C78/(D32+E32)),"") ->  | L87: Date | O87: =TODAY() -> 2023-04-27
A91: Standard Income Multiples | F91: Enhanced Income Multiples
A92: Up to 80% LTV | B92: Single x 4.25 Joint x 4.25 | F92: Sole application – minimum income requirement - £40,000 pa basic (excluding overtime / bonuses etc);
A93: Up to 90% LTV | B93: Single x 4.00 Joint x 4.00 | F93: Joint application – minimum joint income requirement - £70,000 pa basic (excluding overtime / bonuses etc)
A94: Up to 95% LTV | B94: Single x 3.75 Joint x 3.75 | F94: Up to 80% LTV | L94: 5
F95: Up to 85% LTV | L95: 4.75
F96: Up to 90% LTV | L96: 4.5
F97: Up to 95% LTV | L97: 3.9
M99: Version: April 2023

Sheet Net (1) workings (hidden)
F1: Tax Free Allowance | H1: =12570-B33 -> 12,570
B2: Annual | C2: Monthly
F3: Tax Rate | G3: Income Range
A4: Gross Annual Income | B4: =Affordability!D32 -> 0 | C4: =B4/12 -> 0 | F4: 20% | G4: 0 to | H4: 37,700
F5: 40% | G5: 37701 to | H5: 125,140
A6: Tax Free Allowance | B6: =IF(B4<125140,H1,0) -> 12,570 | C6: =B6/12 -> 1,048 | F6: 45% | G6: > 125140
A8: Taxable Amount | B8: =IF((B4-B6)>0,B4-B6,0) -> 0 | C8: =IF((C4-C6)>0,C4-C6,0) -> 0 | F8: NIC Rate | G8: Weekly Inc
F9: 0% | G9: 0 to | H9: 190
A10: Tax @ 20% | B10: =IF(B8<H4,B8*F4,H4*F4) -> 0 | F10: 12.00% | G10: 190.01 to | H10: 967
A11: Tax @ 40% | B11: =IF(AND(B8<H5,B8>H4),(B8-H4)*F5,IF(B8<H4,0,IF(B8>H5,(H5-H4)*F5,0))) -> 0 | F11: 2.00% | G11: > 967
A12: Tax @ 45% | B12: =IF(B8>H5,(B8-H5)*F6,0) -> 0 | F12: NIC Rate | G12: Monthly Inc
A13: Total Tax | B13: =SUM(B10:B12) -> 0 | C13: =B13/12 -> 0 | F13: 0% | G13: 0 to | H13: 1,048
F14: 12.00% | G14: 1048.01 to | H14: 4,189
A15: National Insurance NIL | B15: =C15*12 -> 0 | C15: =(C4-H13)*F13 -> 0 | F15: 2.00% | G15: > 4189
A16: National Insurance 13.25% | B16: =C16*12 -> 0 | C16: =IF(AND(C4<H14,C4>H13),(C4-H13)*F14,IF(C4<H13,0,IF(C4>H14,(H14-H13)*F14,0))) -> 0
A17: National Insurance 3.25% | B17: =C17*12 -> 0 | C17: =IF(C4>H14,(C4-H14)*F15,0) -> 0
A18: Total National Insurance | B18: =SUM(B15:B17) -> 0 | C18: =SUM(C15:C17) -> 0
G19: Rates and thresholds for employers 2022 to 2023 - GOV.UK (www.gov.uk)
A21: Net | B21: =B4-B13-B18 -> 0 | C21: =C4-C13-C18 -> 0 | G21: National Insurance: introduction: How much you pay - GOV.UK (www.gov.uk)
A26: Higher rate threshold | B26: 100,000
A27: Total Income | B27: =Affordability!B32 -> 0
A29: Amount above threshold | B29: =B27-B26 -> -100,000
A30: Reduction in Tax free amount | B30: =B29/2 -> -50,000
B33: =IF(B30>0,B30,0) -> 0
B34: =IF(B30>11850,0,B30) -> -50,000

Sheet Net (2) workings (hidden)
F1: Tax Free Allowance | H1: =12570-B33 -> 12,570
B2: Annual | C2: Monthly
F3: Tax Rate | G3: Income Range
A4: Gross Annual Income | B4: =Affordability!E32 -> 0 | C4: =B4/12 -> 0 | F4: ='Net (1) workings'!F4 -> 20% | G4: ='Net (1) workings'!G4:H6 -> 0 to | H4: ='Net (1) workings'!H4 -> 37,700
F5: ='Net (1) workings'!F5 -> 40% | G5: ='Net (1) workings'!G5:H7 -> 37701 to | H5: ='Net (1) workings'!H5 -> 125,140
A6: Tax Free Allowance | B6: =IF(B4<125140,H1,0) -> 12,570 | C6: =B6/12 -> 1,048 | F6: ='Net (1) workings'!F6 -> 45% | G6: ='Net (1) workings'!G6:H8 -> > 125140 | H6: ='Net (1) workings'!H6:I8 -> 0
A8: Taxable Amount | B8: =IF((B4-B6)>0,B4-B6,0) -> 0 | C8: =IF((C4-C6)>0,C4-C6,0) -> 0 | F8: NIC Rate | G8: Weekly Inc
F9: ='Net (1) workings'!F9 -> 0.00% | G9: ='Net (1) workings'!G9:H11 -> 0 to | H9: ='Net (1) workings'!H9:I11 -> 190
A10: Tax @ 20% | B10: =IF(B8<H4,B8*F4,H4*F4) -> 0 | F10: ='Net (1) workings'!F10 -> 12.00% | G10: ='Net (1) workings'!G10:H12 -> 190.01 to | H10: ='Net (1) workings'!H10:I12 -> 967
A11: Tax @ 40% | B11: =IF(AND(B8<H5,B8>H4),(B8-H4)*F5,IF(B8<H4,0,IF(B8>H5,(H5-H4)*F5,0))) -> 0 | F11: ='Net (1) workings'!F11 -> 2.00% | G11: ='Net (1) workings'!G11:H13 -> > 967 | H11: ='Net (1) workings'!H11:I13 -> 0
A12: Tax @ 45% | B12: =IF(B8>H5,(B8-H5)*F6,0) -> 0 | F12: NIC Rate | G12: Monthly Inc
A13: Total Tax | B13: =SUM(B10:B12) -> 0 | C13: =B13/12 -> 0 | F13: ='Net (1) workings'!F13 -> 0.00% | G13: ='Net (1) workings'!G13:H15 -> 0 to | H13: ='Net (1) workings'!H13:I15 -> 1048
F14: ='Net (1) workings'!F14 -> 12.00% | G14: ='Net (1) workings'!G14:H16 -> 1048.01 to | H14: ='Net (1) workings'!H14:I16 -> 4189
A15: National Insurance NIL | B15: =C15*12 -> 0 | C15: =(C4-H13)*F13 -> 0 | F15: ='Net (1) workings'!F15 -> 2.00% | G15: ='Net (1) workings'!G15:H17 -> > 4189 | H15: ='Net (1) workings'!H15:I17 -> 0
A16: National Insurance 12% | B16: =C16*12 -> 0 | C16: =IF(AND(C4<H14,C4>H13),(C4-H13)*F14,IF(C4<H13,0,IF(C4>H14,(H14-H13)*F14,0))) -> 0
A17: National Insurance 2% | B17: =C17*12 -> 0 | C17: =IF(C4>H14,(C4-H14)*F15,0) -> 0
A18: Total National Insurance | B18: =SUM(B15:B17) -> 0 | C18: =SUM(C15:C17) -> 0
A21: Net | B21: =B4-B13-B18 -> 0 | C21: =C4-C13-C18 -> 0
A26: Higher rate threshold | B26: 150,000
A27: Total Income | B27: =Affordability!C32 -> 0
A29: Amount above threshold | B29: =B27-B26 -> -150,000
A30: Reduction in Tax free amount | B30: =B29/2 -> -75,000
B33: =IF(B30>0,B30,0) -> 0
B34: =IF(B30>11850,0,B30) -> -75,000

Sheet Income Multiple Calc (hidden)
G1: 1% | H1: 4
G2: 2% | H2: 4
G3: 3% | H3: 4
G4: 4% | H4: 4
G5: 5% | H5: 4
G6: 6% | H6: 4
G7: 7% | H7: 4
A8: Standard Income Multiples = Single x 4.00 Joint x 4.00 Up to 80% LTV | G8: 8% | H8: 4
A9: Standard Income Multiples = Single x 3.75 Joint x 3.75 Up to 90% LTV | G9: 9% | H9: 4
A10: Standard Income Multiples = Single x 3.50 Joint x 3.50 Up to 95% LTV | G10: 10% | H10: 4
G11: 11% | H11: 4
G12: 12% | H12: 4
G13: 13% | H13: 4
G14: 14% | H14: 4
G15: 15% | H15: 4
G16: 16% | H16: 4
G17: 17% | H17: 4
G18: 18% | H18: 4
D19: LTV | E19: =Affordability!C78/Affordability!B87 ->  | G19: 19% | H19: 4
G20: 20% | H20: 4
G21: 21% | H21: 4
G22: 22% | H22: 4
G23: 23% | H23: 4
D24: Result | E24: =VLOOKUP(E19,G1:H120,2) ->  | G24: 24% | H24: 4
G25: 25% | H25: 4
G26: 26% | H26: 4
G27: 27% | H27: 4
G28: 28% | H28: 4
G29: 29% | H29: 4
G30: 30% | H30: 4
G31: 31% | H31: 4
G32: 32% | H32: 4
G33: 33% | H33: 4
G34: 34% | H34: 4
G35: 35% | H35: 4
G36: 36% | H36: 4
G37: 37% | H37: 4
G38: 38% | H38: 4
G39: 39% | H39: 4
G40: 40% | H40: 4
G41: 41% | H41: 4
G42: 42% | H42: 4
G43: 43% | H43: 4
G44: 44% | H44: 4
G45: 45% | H45: 4
G46: 46% | H46: 4
G47: 47% | H47: 4
G48: 48% | H48: 4
G49: 49% | H49: 4
G50: 50% | H50: 4
G51: 51% | H51: 4
G52: 52% | H52: 4
G53: 53% | H53: 4
G54: 54% | H54: 4
G55: 55% | H55: 4
G56: 56% | H56: 4
G57: 57% | H57: 4
G58: 58% | H58: 4
G59: 59% | H59: 4
G60: 60% | H60: 4
G61: 61% | H61: 4
G62: 62% | H62: 4
G63: 63% | H63: 4
G64: 64% | H64: 4
G65: 65% | H65: 4
G66: 66% | H66: 4
G67: 67% | H67: 4
G68: 68% | H68: 4
G69: 69% | H69: 4
G70: 70% | H70: 4
G71: 71% | H71: 4
G72: 72% | H72: 4
G73: 73% | H73: 4
G74: 74% | H74: 4
G75: 75% | H75: 4
G76: 76% | H76: 4
G77: 77% | H77: 4
G78: 78% | H78: 4
G79: 79% | H79: 4
G80: 80% | H80: 4
G81: 81% | H81: 3.75
G82: 82% | H82: 3.75
G83: 83% | H83: 3.75
G84: 84% | H84: 3.75
G85: 85% | H85: 3.75
G86: 86% | H86: 3.75
G87: 87% | H87: 3.75
G88: 88% | H88: 3.75
G89: 89% | H89: 3.75
G90: 90% | H90: 3.75
G91: 91% | H91: 3.5
G92: 92% | H92: 3.5
G93: 93% | H93: 3.5
G94: 94% | H94: 3.5
G95: 95% | H95: 3.5
G96: 96% | H96: 0.1
G97: 97% | H97: 0.1
G98: 98% | H98: 0.1
G99: 99% | H99: 0.1
G100: 100% | H100: 0.1
G101: 101% | H101: 0.1
G102: 102% | H102: 0.1
G103: 103% | H103: 0.1
G104: 104% | H104: 0.1
G105: 105% | H105: 0.1
G106: 106% | H106: 0.1
G107: 107% | H107: 0.1
G108: 108% | H108: 0.1
G109: 109% | H109: 0.1
G110: 110% | H110: 0.1
G111: 111% | H111: 0.1
G112: 112% | H112: 0.1
G113: 113% | H113: 0.1
G114: 114% | H114: 0.1
G115: 115% | H115: 0.1
G116: 116% | H116: 0.1
G117: 117% | H117: 0.1
G118: 118% | H118: 0.1
G119: 119% | H119: 0.1
G120: 120% | H120: 0.1
